bitfinex/quotes_ETHUSD_20250524
["timestamp","ask_amount","ask_price","bid_price","bid_amount"]
[1748044960858,8.36687806,2520.8,2519.8,30.978]
[1748044960859,4.3338998,2520.8,2519.8,30.978]
[1748044961066,3.96701202,2520.8,2520.1,4.30862294]
[1748044961364,3.96730035,2520.7,2520.2,17.127]
[1748044961561,3.96730035,2520.7,2520.3,19.081]
[1748044961562,3.96733764,2520.6,2520.3,19.081]
[1748044961719,3.96720833,2520.7,2520.4,11.894]
[1748044962325,3.96746677,2520.5,2520.4,11.894]
[1748044962536,3.96778161,2520.3,2520.2,17.127]
[1748044962740,3.96778161,2520.3,2520.2,48.102]
[1748044963575,3.96778161,2520.3,2520.2,48.099]
[1748044964643,0.05,2520.9,2520.2,52.06686861]
[1748044964966,0.05,2520.9,2520.3,11.96767579]
[1748044964967,4.01686861,2520.9,2520.3,11.96767579]
[1748044965171,0.05,2520.9,2520.5,3.9674127]
[1748044965472,0.05,2520.9,2520.6,0.3406]
[1748044965635,0.05,2520.9,2520.7,19.078]
[1748044965829,0.05,2520.9,2520.8,15.8589946]
[1748044966035,0.05,2520.9,2520.8,11.892]
[1748044966246,0.05,2520.9,2520.8,23.8589946]
[1748044966544,3.96575771,2521.6,2521.1,3.96640039]
[1748044966747,3.96555491,2521.8,2521.3,8.0]
[1748044966947,0.05,2521.9,2521.3,8.0]
[1748044967271,3.96603267,2521.5,2521.3,8.0]
[1748044967567,3.96583102,2521.6,2521.3,8.0]
[1748044967769,3.9662079,2521.3,2521.2,17.122]
[1748044967974,3.96746677,2520.5,2520.4,0.3406]
[1748044968175,3.96746677,2520.5,2520.4,48.087]
[1748044968373,3.96746677,2520.5,2520.4,36.197]
[1748044969076,4.76094671,2520.5,2520.4,36.197]
[1748044969235,3.96746677,2520.5,2520.4,17.122]
[1748044969431,3.96746677,2520.5,2520.4,48.087]
[1748044969637,3.96746677,2520.5,2520.4,17.122]
[1748044969837,3.96746677,2520.5,2520.4,36.197]
[1748044970954,5.3315015,2520.5,2520.4,36.197]
[1748044971151,5.3315015,2520.5,2519.0,0.3406]
[1748044971152,3.96951413,2519.2,2519.0,0.3406]
[1748044971335,3.96951413,2519.2,2519.1,31.015]
[1748044971933,3.96951413,2519.2,2519.1,19.125]
[1748044972481,3.96951413,2519.2,2519.1,31.015]
[1748044974285,3.96940976,2519.3,2519.1,31.015]
[1748044974484,0.7872,2520.2,2519.1,31.015]
[1748044974681,3.96730937,2520.6,2519.2,8.38029331]
[1748044974857,3.96730937,2520.6,2519.4,8.0]
[1748044975056,4.75438445,2520.7,2519.5,6.57]
[1748044975271,3.96793129,2520.3,2519.8,12.30909844]
[1748044975457,3.96748268,2520.5,2520.0,8.0]
[1748044975655,3.96765923,2520.4,2520.1,19.077]
[1748044975883,3.96793905,2520.2,2520.1,19.077]
[1748044976068,3.96709303,2520.8,2520.1,27.077]
[1748044976248,3.96785911,2520.3,2520.1,27.077]
[1748044976450,3.96683724,2520.9,2520.1,27.077]
[1748044976655,3.96789916,2520.3,2520.1,27.077]
[1748044976857,0.36661326,2521.4,2520.2,8.3406]
[1748044977062,3.96717005,2520.7,2520.4,8.0]
[1748044977268,3.96746677,2520.5,2520.4,8.0]
[1748044978145,3.96778161,2520.3,2520.2,0.3406]
[1748044978341,3.96764643,2520.4,2520.3,8.0]
[1748044978955,3.96778161,2520.3,2520.2,19.077]
[1748044979187,3.96778161,2520.3,2520.2,30.967]
[1748044979384,3.96778161,2520.3,2520.2,19.077]
[1748044979589,3.96778161,2520.3,2520.2,30.967]
[1748044979749,3.96872643,2519.7,2519.6,17.123]
[1748044979950,3.96872643,2519.7,2519.6,48.088]
[1748044981063,3.96730937,2520.6,2519.7,0.3406]
[1748044981262,3.96730937,2520.6,2519.7,8.3406]
[1748044981480,0.8104,2521.1,2519.7,0.3406]
[1748044981789,0.36706388,2521.0,2519.9,8.0]
[1748044981994,0.3669835,2520.9,2519.9,8.0]
[1748044982190,3.9680371,2520.2,2519.9,8.0]
[1748044982396,0.3669835,2520.9,2520.1,11.9680965]
[1748044982694,0.3669835,2520.9,2520.1,11.96796943]
[1748044982695,3.9672271,2520.7,2520.1,11.96796943]
[1748044982896,3.96777764,2520.4,2520.2,8.0]
[1748044983050,3.96771361,2520.4,2520.3,38.967]
[1748044983545,3.9660506,2521.4,2520.4,8.0]
[1748044983746,3.96746677,2520.5,2520.4,8.0]
[1748044983984,3.9662079,2521.3,2520.4,8.0]
[1748044984364,3.96739494,2520.6,2520.4,8.0]
[1748044984654,0.36708582,2521.2,2520.4,8.0]
[1748044984655,3.9671428,2520.8,2520.4,8.0]
[1748044984854,3.96746677,2520.5,2520.4,8.0]
[1748044985078,3.96746677,2520.5,2520.4,30.963]
[1748044986016,3.96738044,2520.6,2520.4,30.963]
[1748044986515,3.96746677,2520.5,2520.4,38.963]
[1748044987734,3.96746677,2520.5,2520.4,30.963]
[1748044988038,0.8218,2521.9,2520.6,0.55]
[1748044988184,3.96579035,2521.6,2521.1,0.3406]
[1748044988518,3.9661417,2521.4,2521.2,30.938]
[1748044988820,3.96550549,2521.8,2521.3,11.96618405]
[1748044988977,0.05,2521.9,2521.3,8.0]
[1748044989183,3.9660506,2521.4,2521.3,8.0]
[1748044989380,3.9659749,2521.5,2521.3,8.0]
[1748044989711,3.9660506,2521.4,2521.3,8.0]
[1748044990729,3.96636522,2521.2,2521.1,0.3406]
[1748044990927,0.05,2521.9,2521.1,39.2736]
[1748044991124,3.96636522,2521.2,2521.1,39.2736]
[1748044991490,0.05,2521.9,2521.1,39.2736]
[1748044991691,3.96636522,2521.2,2521.1,27.046]
[1748044991893,3.9669946,2520.8,2520.7,17.12]
[1748044992099,3.9669946,2520.8,2520.7,36.166]
[1748044993639,4.7241946,2520.8,2520.7,36.166]
[1748044994040,5.09136834,2520.8,2520.7,36.166]
[1748044994199,6.03389929,2520.8,2520.7,36.166]
[1748044994395,4.33416834,2520.8,2520.7,36.166]
[1748044995242,4.33416834,2520.8,2520.7,48.053]
[1748044996114,5.09136834,2520.8,2520.7,48.053]
[1748044996311,5.09136834,2520.8,2520.7,36.166]
[1748044996627,3.96856893,2519.8,2519.7,11.887]
[1748044996793,3.96856893,2519.8,2519.7,36.166]
[1748044997814,5.71907746,2519.8,2519.7,36.166]
[1748044998027,6.51004273,2519.8,2519.7,36.166]
[1748044999344,5.35011413,2519.2,2519.1,0.05]
[1748044999635,5.71728787,2519.2,2519.1,19.097]
[1748044999842,6.25229928,2519.2,2519.1,19.097]
[1748045000400,5.16728787,2519.2,2519.1,19.097]
[1748045001244,3.96951413,2519.2,2519.1,19.097]
[1748045002540,0.36578695,2519.7,2519.1,19.097]
[1748045002714,3.96904424,2519.5,2519.2,11.892]
[1748045002917,3.96924215,2519.4,2519.2,11.892]
[1748045003331,3.96935656,2519.3,2519.2,19.892]
[1748045003647,0.7804,2520.5,2519.4,3.96906193]
[1748045003846,3.96817658,2520.1,2519.5,0.03968405]
[1748045004046,3.96830319,2520.0,2519.7,8.0]
[1748045004254,3.96841144,2519.9,2519.8,20.2326]
[1748045005144,3.96841144,2519.9,2519.8,38.946]
[1748045005348,3.96841144,2519.9,2519.8,48.071]
[1748045005948,0.7804,2520.5,2519.8,48.071]
[1748045006153,0.7804,2520.8,2519.9,3.96835366]
[1748045006353,3.96715198,2520.7,2520.0,0.3406]
[1748045006647,3.96757274,2520.5,2520.1,8.0]
[1748045006818,0.36592687,2521.1,2520.0,0.3406]
[1748045007022,3.96667988,2521.0,2520.1,3.96803538]
[1748045007202,3.96667988,2521.0,2520.2,0.12383912]
[1748045007403,3.96741974,2520.6,2520.3,19.053]
[1748045007615,0.7804,2521.2,2520.5,8.0]
[1748045007814,0.36592687,2521.3,2520.7,3.96705261]
[1748045008016,4.33225653,2521.3,2520.8,36.21666413]
[1748045008214,3.96576067,2521.6,2520.8,36.21666413]
[1748045008215,3.9664249,2521.2,2520.8,36.177]
[1748045008654,3.96615078,2521.4,2520.9,8.0]
[1748045008855,3.96575584,2521.6,2521.1,8.0]
[1748045009057,3.96602523,2521.5,2521.2,0.3406]
[1748045009227,3.96607433,2521.4,2521.3,19.051]
[1748045009616,3.96683724,2520.9,2519.5,0.46355541]
[1748045009822,4.76019099,2520.9,2520.8,48.065]
[1748045010972,5.56939099,2520.9,2520.8,36.175]
[1748045012515,6.11939099,2520.9,2520.8,36.175]
[1748045012717,6.11939099,2520.9,2520.8,17.124]
[1748045012944,6.11939099,2520.9,2520.8,36.174]
[1748045013257,6.48528736,2520.9,2520.8,36.174]
[1748045013561,6.85114782,2520.9,2520.8,36.174]
[1748045015070,6.85114782,2520.9,2520.8,17.124]
[1748045015219,6.85114782,2520.9,2520.8,36.175]
[1748045017057,4.69859407,2520.9,2520.8,48.065]
[1748045017257,4.3326977,2520.9,2520.8,48.065]
[1748045017663,0.36586046,2520.9,2520.8,48.065]
[1748045017978,0.36586046,2520.9,2520.8,56.4056]
[1748045018178,0.05,2521.9,2521.0,0.8906]
[1748045018335,0.05,2521.9,2521.5,8.0]
[1748045018519,4.01540358,2521.9,2521.6,31.2486]
[1748045018719,0.05,2521.9,2521.7,8.0]
[1748045018964,0.05,2521.9,2521.8,25.16165117]
[1748045019119,0.05,2521.9,2521.8,25.122]
[1748045019631,4.01526428,2521.9,2521.8,25.122]
[1748045019833,0.05,2521.9,2521.8,25.122]
[1748045023078,0.05,2521.9,2521.8,35.10742152]
[1748045023288,1.98408406,2522.2,2522.1,3.96494984]
[1748045023444,0.05,2522.9,2522.2,8.0]
[1748045023785,0.05,2522.9,2522.6,8.0]
[1748045023966,0.05,2522.9,2522.8,8.3406]
[1748045024296,0.05,2522.9,2522.8,25.4556]
[1748045024589,4.01369257,2522.9,2522.8,25.4556]
[1748045024974,4.01369257,2522.9,2522.8,17.115]
[1748045025189,0.05,2522.9,2522.8,48.01]
[1748045025508,0.05,2522.9,2522.8,56.01]
[1748045026343,4.01369257,2522.9,2522.8,56.01]
[1748045026544,0.05,2522.9,2522.8,56.01]
[1748045026754,0.05,2522.9,2522.8,60.31444969]
[1748045027054,0.8601,2524.9,2523.3,0.3406]
[1748045027271,4.01223085,2523.9,2523.5,8.0]
[1748045027599,4.01223085,2523.9,2523.7,8.0]
[1748045027600,0.05,2523.9,2523.7,8.0]
[1748045027769,0.05,2523.9,2523.8,25.111]
[1748045027957,4.01212211,2523.9,2523.8,25.111]
[1748045028285,4.41333432,2523.9,2523.8,17.111]
[1748045028456,3.96347301,2523.1,2522.6,8.0]
[1748045028780,0.45121221,2523.9,2522.8,3.96382081]
[1748045028973,3.96292654,2523.4,2522.9,19.005]
[1748045029156,0.05,2523.9,2523.1,3.96337388]
[1748045029482,3.96314404,2523.3,2522.9,19.005]
[1748045029679,3.96300068,2523.4,2523.0,11.88]
[1748045029879,0.05,2523.9,2523.0,12.31164459]
[1748045030102,0.05,2523.9,2523.0,11.88]
[1748045030283,3.96322971,2523.2,2523.0,11.88]
[1748045030489,3.96267214,2523.6,2523.1,8.0]
[1748045030787,3.96289897,2523.5,2523.1,8.0]
[1748045030947,3.96293474,2523.4,2523.1,8.0]
[1748045031142,3.96282712,2523.5,2523.1,8.0]
[1748045031357,0.05,2523.9,2523.5,8.0]
[1748045031561,4.01214335,2523.9,2523.6,19.001]
[1748045032150,0.05,2523.9,2523.7,8.0]
[1748045032488,0.05,2523.9,2523.8,11.88]
[1748045032897,0.05,2523.9,2523.8,19.88]
[1748045033440,0.05,2523.9,2523.8,24.27392369]
[1748045033687,0.05,2523.9,2523.8,19.88]
[1748045034060,3.96171701,2524.2,2523.9,8.0]
[1748045034481,3.9610463,2524.6,2522.9,3.96369257]
[1748045034681,3.96207765,2524.0,2523.4,12.51284848]
[1748045034865,3.96210764,2524.0,2523.4,8.55]
[1748045035065,0.39610463,2524.5,2523.4,8.55]
[1748045035266,3.96236839,2523.8,2523.6,8.0]
[1748045035471,3.96217011,2523.9,2523.7,18.997]
[1748045035667,3.96217011,2523.9,2523.8,11.878]
[1748045036288,3.96203959,2524.0,2523.8,11.878]
[1748045036586,3.96212211,2523.9,2523.8,11.878]
[1748045037391,3.96246057,2523.7,2523.5,17.104]
[1748045037710,3.96259312,2523.6,2523.5,28.98]
[1748045037891,4.71859312,2523.6,2523.5,36.098]
[1748045038551,3.96463545,2522.3,2522.1,0.05]
[1748045038750,3.96445735,2522.5,2522.2,31.33355541]
[1748045039093,3.96463545,2522.3,2522.2,26.994]
[1748045039293,3.96463545,2522.3,2522.2,30.87]
[1748045039493,3.96463545,2522.3,2522.1,0.05]
[1748045039494,4.72079264,2522.2,2522.1,0.05]
[1748045039653,4.76042737,2522.2,2522.1,19.044]
[1748045039851,4.72079264,2522.2,2522.1,19.044]
[1748045040392,3.96479264,2522.2,2522.1,19.044]
[1748045040765,4.75773545,2522.2,2522.1,0.05]
[1748045041094,6.10337018,2522.2,2522.1,19.044]
[1748045041387,3.96636522,2521.2,2521.1,11.926]
[1748045041629,3.96636522,2521.2,2521.1,30.923]
[1748045041932,3.9662182,2521.3,2521.1,19.047]
[1748045042091,3.96636522,2521.2,2521.1,19.047]
[1748045044703,5.51562356,2521.2,2521.1,19.047]
[1748045045124,5.55525829,2521.2,2521.1,19.047]
[1748045045295,5.8800142,2521.2,2521.1,19.047]
[1748045045700,6.4300142,2521.2,2521.1,19.047]
[1748045046733,5.8800142,2521.2,2521.1,19.047]
[1748045047734,5.08675586,2521.2,2521.1,19.047]
[1748045048104,0.36439064,2521.2,2521.1,19.047]
[1748045048306,0.7713,2521.8,2521.1,19.097]
[1748045048520,3.96636522,2521.2,2521.1,19.097]
[1748045048706,3.96636522,2521.2,2521.1,19.047]
[1748045055444,3.96636522,2521.2,2521.1,30.9]
[1748045056891,3.96636522,2521.2,2521.1,19.016]
[1748045057125,4.7596229,2521.2,2521.1,30.9]
[1748045057689,5.5560229,2521.2,2521.1,0.05]
[1748045057844,5.59565763,2521.2,2521.1,19.016]
[1748045058053,5.5560229,2521.2,2521.1,19.016]
[1748045059188,6.1060229,2521.2,2521.1,19.016]
[1748045059391,4.76355198,2520.7,2520.6,17.107]
[1748045059591,5.6366091,2520.7,2520.6,36.075]
[1748045062397,4.76355198,2520.7,2520.6,36.075]
[1748045063256,3.96793905,2520.2,2520.1,0.05]
[1748045063592,13.38957378,2520.2,2520.1,0.05]
[1748045063792,15.08567714,2520.2,2520.1,0.05]
[1748045064096,3.96935656,2519.3,2519.2,18.971]
[1748045065289,4.51935656,2519.3,2519.2,18.971]
[1748045065479,3.96935656,2519.3,2519.2,18.971]
[1748045066697,4.33361059,2519.3,2519.2,18.971]
[1748045067882,5.68046299,2519.3,2519.2,18.971]
[1748045069092,4.33361059,2519.3,2519.2,18.971]
[1748045070406,3.96951413,2519.2,2519.1,0.05]
[1748045070700,12.33376816,2519.2,2519.1,19.029]
[1748045070892,13.24909877,2519.2,2519.1,19.029]
[1748045071195,12.69909877,2519.2,2519.1,19.029]
[1748045071394,0.72958464,2519.2,2519.1,30.921]
[1748045071600,0.36533061,2520.0,2519.1,30.921]
[1748045071803,3.96903525,2519.6,2519.1,31.071]
[1748045071964,3.96951413,2519.2,2519.1,19.179]
[1748045072164,3.96951413,2519.2,2519.1,19.029]
[1748045072466,4.76340355,2519.2,2519.1,30.923]
[1748045072663,3.96951413,2519.2,2519.1,30.923]
[1748045073567,3.96951413,2519.2,2519.1,19.031]
[1748045074367,5.75617203,2519.2,2519.1,0.05]
[1748045074691,14.08162467,2519.2,2519.1,0.05]
[1748045075701,5.53162467,2519.2,2519.1,0.05]
[1748045076003,5.1665373,2519.2,2519.1,0.05]
[1748045076214,4.3345373,2519.2,2519.1,0.05]
[1748045076413,5.28463777,2519.2,2519.1,19.033]
[1748045076785,4.9196146,2519.2,2519.1,19.033]
[1748045077815,3.96951413,2519.2,2519.1,19.033]
[1748045078671,3.96951413,2519.2,2519.1,18.984]
[1748045078869,4.72331413,2519.2,2519.1,18.984]
[1748045079482,5.08812929,2519.2,2519.1,18.984]
[1748045080821,4.33432929,2519.2,2519.1,18.984]
[1748045081184,5.71470022,2519.2,2519.1,18.984]
[1748045083228,14.46850022,2519.2,2519.1,18.984]
[1748045083615,14.83396922,2519.2,2519.1,18.984]
[1748045084885,12.5196717,2519.1,2519.0,17.118]
[1748045085226,3.96982929,2519.0,2518.9,18.937]
[1748045085397,16.17482538,2519.0,2518.9,18.937]
[1748045085606,28.39765965,2519.0,2518.9,18.937]
[1748045086121,28.17826047,2519.0,2518.9,18.937]
[1748045086502,7.73126047,2519.0,2518.9,18.937]
[1748045086717,5.45391345,2519.0,2518.9,18.937]
[1748045087826,4.70011345,2519.0,2518.9,18.937]
[1748045088132,4.33464445,2519.0,2518.9,18.937]
[1748045089641,4.33464445,2519.0,2518.9,19.06094114]
[1748045089957,4.33464445,2519.0,2518.9,18.937]
[1748045089958,5.71737918,2519.0,2518.9,18.937]
[1748045090098,6.94476221,2519.0,2518.9,18.937]
[1748045090415,6.90512748,2519.0,2518.9,18.937]
[1748045090737,14.90512748,2519.0,2518.9,18.937]
[1748045090946,15.1255079,2519.0,2518.9,18.937]
[1748045091446,15.1255079,2519.0,2518.2,17.132]
[1748045091447,3.97093277,2518.3,2518.2,17.132]
[1748045091623,3.97093277,2518.3,2518.2,36.071]
[1748045092198,4.33574793,2518.3,2518.2,36.071]
[1748045095539,4.70390896,2518.3,2518.2,36.071]
[1748045095739,5.57138006,2518.3,2518.2,36.074]
[1748045096043,4.70390896,2518.3,2518.2,36.074]
[1748045097539,4.3390938,2518.3,2518.2,36.074]
[1748045098461,3.97093277,2518.3,2518.2,36.074]
[1748045099685,4.33859165,2518.3,2518.2,36.075]
[1748045101279,4.33859165,2518.3,2518.2,47.976]
[1748045101657,3.97093277,2518.3,2518.2,47.976]
[1748045101860,3.97093277,2518.3,2518.2,48.176]
[1748045102075,3.97093277,2518.3,2518.2,36.275]
[1748045102275,3.97093277,2518.3,2518.2,48.176]
[1748045102477,3.97084053,2518.4,2518.2,48.176]
[1748045102790,3.97093277,2518.3,2518.2,48.176]
[1748045103300,3.97088389,2518.4,2518.2,48.176]
[1748045103460,3.97093277,2518.3,2518.2,48.176]
[1748045104467,3.97093277,2518.3,2518.2,48.175]
[1748045105099,3.97093277,2518.3,2518.2,36.274]
[1748045105273,3.97093277,2518.3,2518.2,48.174]
[1748045106207,4.76510379,2518.3,2518.2,47.974]
[1748045106609,4.76510379,2518.3,2518.2,36.074]
[1748045106907,5.13258934,2518.3,2518.2,36.074]
[1748045107298,5.13258934,2518.3,2517.4,0.46355541]
[1748045107299,3.97219463,2517.5,2517.4,0.46355541]
[1748045107505,3.97219463,2517.5,2517.4,18.942]
[1748045107804,3.97205707,2517.6,2517.5,0.2]
[1748045108103,4.33954262,2517.6,2517.5,12.101]
[1748045109430,4.33954262,2517.6,2517.4,18.942]
[1748045109431,3.97219463,2517.5,2517.4,18.942]
[1748045109580,3.97219463,2517.5,2517.4,30.843]
[1748045109935,3.97219463,2517.5,2517.4,18.942]
[1748045110217,5.2005577,2517.5,2517.4,18.942]
[1748045110381,5.56804325,2517.5,2517.4,18.942]
[1748045110777,4.33968018,2517.5,2517.4,18.942]
[1748045111078,4.70702668,2517.5,2517.4,18.942]
[1748045113994,5.25702668,2517.5,2517.4,18.942]
[1748045114230,5.29666141,2517.5,2517.4,18.942]
[1748045114387,5.25702668,2517.5,2517.4,18.942]
[1748045114582,6.6547444,2517.5,2517.4,18.942]
[1748045114782,6.2873979,2517.5,2517.4,18.942]
[1748045115097,6.65438097,2517.5,2517.4,18.942]
[1748045115896,15.4578157,2517.5,2517.4,18.942]
[1748045116206,15.41818097,2517.5,2517.4,18.942]
[1748045116409,4.52393101,2516.4,2516.3,18.894]
[1748045116599,12.56356574,2516.4,2516.3,18.894]
[1748045116819,4.52424688,2516.2,2516.1,18.944]
[1748045117039,5.71122995,2516.2,2516.1,18.944]
[1748045117404,13.71122995,2516.2,2516.1,18.944]
[1748045117604,14.0787155,2516.2,2516.1,18.944]
[1748045117952,28.35076472,2516.2,2516.1,0.05]
[1748045119038,12.52472077,2515.9,2515.8,36.036]
[1748045119222,13.34472077,2515.9,2515.8,36.036]
[1748045119415,13.71170384,2515.9,2515.8,36.036]
[1748045119617,16.2452585,2515.9,2515.8,36.036]
[1748045120140,8.2452585,2515.9,2515.8,36.036]
[1748045120433,8.2452585,2515.9,2515.8,17.142]
[1748045120635,8.2452585,2515.9,2515.8,36.041]
[1748045120843,7.6952585,2515.9,2515.8,36.041]
[1748045121340,8.2452585,2515.9,2515.8,36.041]
[1748045121517,16.2452585,2515.9,2515.8,36.041]
[1748045121903,0.55,2515.8,2514.7,0.2]
[1748045122105,0.55,2515.8,2514.1,0.05]
[1748045122106,5.31562697,2515.2,2515.0,17.147]
[1748045122304,5.3552617,2515.2,2515.0,17.147]
[1748045122505,5.68261004,2515.2,2515.0,17.147]
[1748045122703,6.05009559,2515.2,2515.0,17.147]
[1748045123005,5.89589103,2515.2,2515.0,17.147]
[1748045124157,4.34331252,2515.2,2515.1,13.26262473]
[1748045124308,0.36748555,2515.2,2515.1,25.48860978]
[1748045124508,3.97470088,2516.0,2515.6,0.25]
[1748045124708,3.97485005,2515.9,2515.7,30.813]
[1748045124908,3.9734573,2516.7,2515.8,30.813]
[1748045125223,3.97472077,2515.9,2515.8,30.813]
[1748045125752,3.97361519,2516.6,2515.1,9.35262473]
[1748045125753,3.97582697,2515.2,2515.1,9.35262473]
[1748045125908,3.97483726,2515.9,2515.1,40.16662473]
[1748045126111,3.97446375,2516.1,2515.1,44.14251533]
[1748045126311,3.97505167,2515.7,2515.4,0.25]
[1748045126515,3.97377309,2516.5,2515.6,0.25]
[1748045126711,3.97503676,2515.7,2515.6,0.25]
[1748045127013,3.97503676,2515.7,2515.6,31.064]
[1748045127557,0.51229938,2516.8,2515.6,31.064]
[1748045127712,3.97393709,2516.4,2515.8,0.25]
[1748045128059,3.97266804,2517.2,2515.8,8.0]
[1748045128363,3.97408894,2516.3,2516.2,0.25]
[1748045128522,3.97401226,2516.4,2516.2,48.215]
[1748045128720,3.97408894,2516.3,2516.2,48.215]
[1748045129122,3.97397936,2516.4,2516.2,48.215]
[1748045129353,3.97374507,2516.6,2516.2,48.215]
[1748045129545,3.97408894,2516.3,2516.2,48.215]
[1748045129751,3.97370806,2516.6,2516.2,48.215]
[1748045130118,0.7653,2517.4,2516.2,48.215]
[1748045130323,17.15,2518.8,2516.2,48.215]
[1748045130324,3.97342169,2516.8,2516.4,0.25]
[1748045130676,3.97203686,2517.6,2516.4,0.25]
[1748045130823,3.97331254,2516.8,2516.4,0.25]
[1748045131017,0.7653,2517.7,2516.4,0.25]
[1748045131323,3.97213069,2517.6,2516.9,0.25]
[1748045131635,3.97201607,2517.7,2517.1,8.0]
[1748045131834,0.05,2517.9,2517.4,0.25]
[1748045132147,0.05,2517.9,2517.2,17.15]
[1748045132148,0.05,2517.9,2517.6,8.0]
[1748045132323,0.05,2517.9,2517.8,8.0]
[1748045132677,4.0215636,2517.9,2517.8,8.0]
[1748045132882,0.05,2517.9,2517.8,8.0]
[1748045133226,0.05,2517.9,2517.8,8.25]
[1748045133421,0.05,2517.9,2517.8,12.22172134]
[1748045133660,0.05,2517.9,2517.8,12.77172134]
[1748045133866,0.05,2518.9,2518.7,8.0]
[1748045134135,0.05,2518.9,2518.8,24.13014451]
[1748045134534,0.05,2518.9,2518.8,20.16]
[1748045135160,0.05,2518.9,2518.8,37.305]
[1748045135322,0.05,2518.9,2518.8,56.202]
[1748045135721,2.75378406,2520.6,2518.9,8.55]
[1748045135922,3.96810134,2520.1,2519.4,11.96918449]
[1748045136155,4.01851097,2519.9,2519.5,12.156]
[1748045136363,0.05,2519.9,2519.5,12.156]
[1748045136665,0.05,2519.9,2519.8,8.8]
[1748045136968,1.98408406,2520.6,2520.1,0.25]
[1748045137268,3.96762418,2520.4,2520.1,0.25]
[1748045137477,1.98408406,2520.6,2520.3,8.0]
[1748045137638,3.96746865,2520.5,2520.3,8.0]
[1748045137965,3.96789766,2520.3,2520.1,0.25]
[1748045138260,3.96789766,2520.3,2520.2,11.901]
[1748045138639,3.96768766,2520.4,2520.2,11.901]
[1748045138857,3.96778161,2520.3,2520.2,11.901]
[1748045139060,3.96793905,2520.2,2520.1,0.25]
[1748045139765,3.96724537,2520.7,2520.2,8.0]
[1748045139965,4.01685923,2520.9,2520.4,0.25]
[1748045140165,0.05,2520.9,2520.5,0.03966671]
[1748045140351,0.05,2520.9,2520.6,8.25]
[1748045140538,4.01698736,2520.9,2520.6,0.25]
[1748045140862,0.05,2520.9,2520.6,0.25]
[1748045141265,3.96715198,2520.7,2520.6,0.25]
[1748045141428,3.96715198,2520.7,2520.6,20.148]
[1748045141629,3.96715198,2520.7,2520.6,0.25]
[1748045141955,3.96735477,2520.6,2519.8,0.25]
[1748045142152,3.96841144,2519.9,2519.8,0.25]
[1748045142473,3.96841144,2519.9,2519.8,12.148]
[1748045142868,3.96841144,2519.9,2518.7,0.25]
[1748045143040,3.96987229,2519.0,2518.7,0.25]
[1748045143242,3.97014451,2518.8,2518.7,0.25]
[1748045143569,3.97014451,2518.8,2518.7,12.148]
[1748045143765,3.97030213,2518.7,2518.6,0.46355541]
[1748045143965,3.97030213,2518.7,2518.6,12.35955541]
[1748045144135,3.97077509,2518.4,2518.3,0.25]
[1748045144336,3.97109046,2518.2,2518.1,0.05]
[1748045145277,3.97109046,2518.2,2518.1,36.006]
[1748045146970,3.97109046,2518.2,2518.1,17.18]
[1748045147175,3.97109046,2518.2,2518.1,47.904]
[1748045148065,3.97109046,2518.2,2518.1,17.18]
[1748045148438,12.72649046,2518.2,2518.1,36.007]
[1748045148648,3.97109046,2518.2,2518.1,36.007]
[1748045149869,3.96998689,2518.9,2518.1,36.007]
[1748045150438,3.97082424,2518.4,2518.1,36.007]
[1748045150644,3.97095082,2518.3,2518.1,36.007]
[1748045151252,3.97109046,2518.2,2518.1,36.007]
[1748045151479,0.8216,2519.4,2518.1,36.007]
[1748045151682,3.97037059,2518.7,2518.3,0.25]
[1748045151878,0.8216,2519.4,2518.4,11.899]
[1748045151879,1.30067722,2519.4,2518.4,11.899]
[1748045152082,0.8216,2519.4,2518.5,0.03969656]
[1748045152283,0.8216,2519.4,2518.4,11.899]
[1748045152284,0.8216,2519.8,2518.6,18.83]
[1748045152460,3.96984758,2519.0,2518.6,18.83]
[1748045152664,8.0,2519.7,2518.5,3.9705415]
[1748045152849,3.97030213,2518.7,2518.6,30.728]
[1748045154159,3.97030213,2518.7,2518.3,0.25]
[1748045154160,3.97077509,2518.4,2518.3,0.25]
[1748045154491,3.97109046,2518.2,2518.1,17.18]
[1748045154673,3.97109046,2518.2,2518.1,36.01]
[1748045155788,3.97063308,2518.5,2518.1,36.01]
[1748045155949,8.8216,2519.0,2518.1,36.01]
[1748045155950,12.79155479,2519.0,2518.1,36.01]
[1748045156155,3.96930246,2519.4,2518.2,0.25]
[1748045156156,3.97040757,2518.7,2518.2,0.25]
[1748045156348,3.97052091,2518.6,2518.2,0.25]
[1748045156572,8.0,2519.1,2518.2,0.25]
[1748045156798,3.97051961,2518.6,2518.2,0.25]
[1748045156976,3.97051961,2518.6,2518.3,30.73]
[1748045157467,3.97062096,2518.5,2518.3,30.73]
[1748045157662,3.96935656,2519.3,2518.3,30.73]
[1748045157874,3.97039854,2518.7,2518.3,30.73]
[1748045158281,3.9696717,2519.1,2518.2,0.25]
[1748045158282,3.97093277,2518.3,2518.2,0.25]
[1748045158592,3.97061743,2518.5,2518.4,30.73]
[1748045159490,3.97039425,2518.7,2518.4,30.73]
[1748045159663,3.97077509,2518.4,2518.3,6.02]
[1748045159866,3.97077509,2518.4,2518.3,30.729]
[1748045160063,3.97077509,2518.4,2518.3,18.83]
[1748045160277,3.97077509,2518.4,2518.3,30.729]